[Event "Early-Titled-Tuesday-Blitz-January-30-2024"]
[Site "Chess.com"]
[Date "2024.01.30"]
[Round "11"]
[White "Viktor_Poddubnyi"]
[Black "Jojo_898"]
[Result "0-1"]
[WhiteElo "2301"]
[BlackElo "2438"]
[TimeControl "180+1"]
[EndTime "10:11:37 PST"]
[Termination "Jojo_898 won by resignation"]

1. e4 {[%clk 0:03:00.9]} 1... d6 {[%clk 0:02:59.4]} 2. d4 {[%clk 0:03:00.6]}
2... Nf6 {[%clk 0:02:59.9]} 3. Nc3 {[%clk 0:03:01]} 3... g6 {[%clk 0:02:59.6]}
4. g3 {[%clk 0:03:01]} 4... c6 {[%clk 0:02:59.9]} 5. a4 {[%clk 0:02:59.8]} 5...
Bg7 {[%clk 0:02:59.7]} 6. Bg2 {[%clk 0:03:00.4]} 6... O-O {[%clk 0:03:00.3]} 7.
Nge2 {[%clk 0:03:01]} 7... Nbd7 {[%clk 0:02:58.4]} 8. h3 {[%clk 0:03:00]} 8...
e5 {[%clk 0:02:58.8]} 9. O-O {[%clk 0:02:59]} 9... Qc7 {[%clk 0:02:51.4]} 10. g4
{[%clk 0:02:58.5]} 10... Nb6 {[%clk 0:02:49.7]} 11. b3 {[%clk 0:02:47.3]} 11...
Rd8 {[%clk 0:02:47]} 12. a5 {[%clk 0:02:39.2]} 12... Nbd7 {[%clk 0:02:43.3]} 13.
Be3 {[%clk 0:02:33.6]} 13... Nf8 {[%clk 0:02:43]} 14. f4 {[%clk 0:02:27]} 14...
exd4 {[%clk 0:02:35.9]} 15. Nxd4 {[%clk 0:02:25.9]} 15... Re8 {[%clk 0:02:33.1]}
16. f5 {[%clk 0:01:55.5]} 16... d5 {[%clk 0:02:23.4]} 17. Bf4 {[%clk 0:01:44]}
17... Qd8 {[%clk 0:02:11.6]} 18. e5 {[%clk 0:01:37.1]} 18... Ne4 {[%clk
0:02:09.6]} 19. Nxe4 {[%clk 0:01:31.7]} 19... dxe4 {[%clk 0:02:10.5]} 20. f6
{[%clk 0:01:25.7]} 20... Bh8 {[%clk 0:02:04.2]} 21. Qe2 {[%clk 0:01:18]} 21...
Qxd4+ {[%clk 0:02:03.1]} 22. Kh1 {[%clk 0:01:15.1]} 22... Ne6 {[%clk 0:01:59.9]}
23. Bg3 {[%clk 0:01:11.9]} 23... Ng5 {[%clk 0:01:58.5]} 24. Rad1 {[%clk
0:01:04.7]} 24... Qb4 {[%clk 0:01:56.9]} 25. Qe3 {[%clk 0:00:51.9]} 25... h6
{[%clk 0:01:38.1]} 26. h4 {[%clk 0:00:42.6]} 26... Nf3 {[%clk 0:01:37.6]} 27. c3
{[%clk 0:00:33.6]} 27... Qxa5 {[%clk 0:01:24.3]} 28. Qxe4 {[%clk 0:00:33.8]}
28... Nxe5 {[%clk 0:01:14.1]} 29. Rde1 {[%clk 0:00:13.8]} 29... Bxg4 {[%clk
0:01:05.5]} 30. Bxe5 {[%clk 0:00:12.7]} 30... h5 {[%clk 0:00:58.4]} 31. Qxg6+
{[%clk 0:00:09.1]} 31... fxg6 {[%clk 0:00:56.1]} 32. f7+ {[%clk 0:00:09.2]}
32... Kh7 {[%clk 0:00:54]} 0-1

[Event "Early-Titled-Tuesday-Blitz-January-30-2024"]
[Site "Chess.com"]
[Date "2024.01.30"]
[Round "11"]
[White "Klavdia_Nik"]
[Black "SmirnovTimofey2000"]
[Result "1-0"]
[WhiteElo "2133"]
[BlackElo "1945"]
[TimeControl "180+1"]
[EndTime "10:11:41 PST"]
[Termination "Klavdia_Nik won by checkmate"]

1. Nf3 {[%clk 0:02:52.6]} 1... d5 {[%clk 0:02:58.9]} 2. c4 {[%clk 0:02:52.1]}
2... c6 {[%clk 0:02:56]} 3. b3 {[%clk 0:02:51.9]} 3... Nf6 {[%clk 0:02:55.8]} 4.
Bb2 {[%clk 0:02:50.8]} 4... e6 {[%clk 0:02:55.2]} 5. g3 {[%clk 0:02:44.9]} 5...
Be7 {[%clk 0:02:53.4]} 6. Bg2 {[%clk 0:02:43.2]} 6... O-O {[%clk 0:02:52.9]} 7.
O-O {[%clk 0:02:43.4]} 7... Nbd7 {[%clk 0:02:52.6]} 8. d3 {[%clk 0:02:43.8]}
8... a5 {[%clk 0:02:49.6]} 9. a3 {[%clk 0:02:42]} 9... b5 {[%clk 0:02:41.4]} 10.
Nbd2 {[%clk 0:02:38.8]} 10... Bb7 {[%clk 0:02:39.3]} 11. Qc2 {[%clk 0:02:31.3]}
11... Rc8 {[%clk 0:02:37.8]} 12. Rad1 {[%clk 0:02:26.5]} 12... Qb6 {[%clk
0:02:33.6]} 13. e4 {[%clk 0:02:21.1]} 13... dxe4 {[%clk 0:02:30.9]} 14. dxe4
{[%clk 0:02:22]} 14... Rfd8 {[%clk 0:02:27.5]} 15. e5 {[%clk 0:02:20.1]} 15...
Ne8 {[%clk 0:02:23.9]} 16. Ne4 {[%clk 0:02:12.2]} 16... Nc5 {[%clk 0:02:20.1]}
17. Bd4 {[%clk 0:01:43]} 17... b4 {[%clk 0:01:39.3]} 18. a4 {[%clk 0:01:34.6]}
18... g6 {[%clk 0:01:37.9]} 19. h4 {[%clk 0:01:32.8]} 19... Ng7 {[%clk
0:01:37.8]} 20. Nf6+ {[%clk 0:01:21.9]} 20... Kh8 {[%clk 0:01:17.1]} 21. Ng5
{[%clk 0:01:14.2]} 21... Rf8 {[%clk 0:01:09.2]} 22. Ngxh7 {[%clk 0:01:10.9]}
22... Nf5 {[%clk 0:01:03.9]} 23. Nxf8 {[%clk 0:01:04.9]} 23... Nxd4 {[%clk
0:00:51.9]} 24. Rxd4 {[%clk 0:01:05.8]} 24... Bxf8 {[%clk 0:00:51.3]} 25. Rg4
{[%clk 0:00:55.8]} 25... Be7 {[%clk 0:00:26]} 26. Rxg6 {[%clk 0:00:51.9]} 26...
Bxf6 {[%clk 0:00:11.1]} 27. Rxf6 {[%clk 0:00:44.8]} 27... Kg7 {[%clk 0:00:10]}
28. Qe2 {[%clk 0:00:37.1]} 28... Rg8 {[%clk 0:00:07.1]} 29. Qh5 {[%clk
0:00:35.7]} 29... Nd7 {[%clk 0:00:05.8]} 30. Qh6# {[%clk 0:00:35.4]} 1-0

[Event "Early-Titled-Tuesday-Blitz-January-30-2024"]
[Site "Chess.com"]
[Date "2024.01.30"]
[Round "11"]
[White "falzehope0"]
[Black "santosalberto1987"]
[Result "0-1"]
[WhiteElo "2379"]
[BlackElo "2526"]
[TimeControl "180+1"]
[EndTime "10:11:42 PST"]
[Termination "santosalberto1987 won on time"]

1. d4 {[%clk 0:03:00.9]} 1... Nf6 {[%clk 0:02:59.9]} 2. e3 {[%clk 0:03:01.8]}
2... d6 {[%clk 0:02:58.9]} 3. Bd3 {[%clk 0:03:02.7]} 3... e5 {[%clk 0:02:58.3]}
4. f4 {[%clk 0:02:47.7]} 4... Nbd7 {[%clk 0:02:42.3]} 5. Ne2 {[%clk 0:02:42.6]}
5... g6 {[%clk 0:02:41.7]} 6. O-O {[%clk 0:02:38.6]} 6... Bg7 {[%clk 0:02:37.3]}
7. Ng3 {[%clk 0:02:29.7]} 7... O-O {[%clk 0:02:35.4]} 8. c3 {[%clk 0:02:24.6]}
8... b6 {[%clk 0:02:29.4]} 9. f5 {[%clk 0:02:16.7]} 9... Bb7 {[%clk 0:02:25.3]}
10. Nd2 {[%clk 0:01:45]} 10... Qe7 {[%clk 0:02:09.3]} 11. Qc2 {[%clk 0:01:31.1]}
11... exd4 {[%clk 0:02:04.5]} 12. exd4 {[%clk 0:01:29.2]} 12... Ng4 {[%clk
0:01:59.1]} 13. Nf3 {[%clk 0:01:28.7]} 13... Ne3 {[%clk 0:01:54.6]} 14. Bxe3
{[%clk 0:01:24.1]} 14... Qxe3+ {[%clk 0:01:55.5]} 15. Kh1 {[%clk 0:01:23.4]}
15... Rae8 {[%clk 0:01:46.1]} 16. Bb5 {[%clk 0:01:04.5]} 16... Qe7 {[%clk
0:01:23.5]} 17. Qa4 {[%clk 0:01:00.8]} 17... Bc8 {[%clk 0:01:07.8]} 18. Qxa7
{[%clk 0:00:56.5]} 18... Qd8 {[%clk 0:01:06.1]} 19. fxg6 {[%clk 0:00:48.4]}
19... hxg6 {[%clk 0:00:54.8]} 20. a4 {[%clk 0:00:39.6]} 20... Re3 {[%clk
0:00:47.7]} 21. Bc6 {[%clk 0:00:32.2]} 21... Nf6 {[%clk 0:00:46.3]} 22. d5
{[%clk 0:00:28]} 22... Ng4 {[%clk 0:00:44.5]} 23. Kg1 {[%clk 0:00:22.5]} 23...
Ne5 {[%clk 0:00:36.6]} 24. Nd4 {[%clk 0:00:16.8]} 24... Ng4 {[%clk 0:00:33.4]}
25. Rf3 {[%clk 0:00:08.2]} 25... Qh4 {[%clk 0:00:30.7]} 26. Nf1 {[%clk
0:00:03.7]} 26... Bxd4 {[%clk 0:00:28]} 27. Nxe3 {[%clk 0:00:01.1]} 27... Bxe3+
{[%clk 0:00:24.2]} 0-1

[Event "Early-Titled-Tuesday-Blitz-January-30-2024"]
[Site "Chess.com"]
[Date "2024.01.30"]
[Round "11"]
[White "Practical-Play"]
[Black "LangesNasenhaar"]
[Result "0-1"]
[WhiteElo "2590"]
[BlackElo "2458"]
[TimeControl "180+1"]
[EndTime "10:11:49 PST"]
[Termination "LangesNasenhaar won by resignation"]

1. e4 {[%clk 0:02:58.1]} 1... g6 {[%clk 0:03:00.2]} 2. d4 {[%clk 0:02:56]} 2...
Bg7 {[%clk 0:03:00.6]} 3. Nc3 {[%clk 0:02:56.5]} 3... c6 {[%clk 0:02:58.4]} 4.
Nf3 {[%clk 0:02:48.5]} 4... d5 {[%clk 0:02:56.1]} 5. Bd3 {[%clk 0:02:38.2]} 5...
dxe4 {[%clk 0:02:52.8]} 6. Nxe4 {[%clk 0:02:37.5]} 6... Nd7 {[%clk 0:02:53.4]}
7. Qe2 {[%clk 0:02:36.1]} 7... Qc7 {[%clk 0:02:48]} 8. h4 {[%clk 0:02:34.6]}
8... Ngf6 {[%clk 0:02:47.4]} 9. h5 {[%clk 0:02:33.6]} 9... Nxh5 {[%clk
0:02:41.4]} 10. Rxh5 {[%clk 0:02:27.3]} 10... gxh5 {[%clk 0:02:41.2]} 11. Nfg5
{[%clk 0:02:18.3]} 11... Nf6 {[%clk 0:02:17.3]} 12. Bc4 {[%clk 0:02:00.3]} 12...
e6 {[%clk 0:02:06.1]} 13. Nxf6+ {[%clk 0:01:43.3]} 13... Bxf6 {[%clk 0:02:05.6]}
14. Qxh5 {[%clk 0:01:43.3]} 14... h6 {[%clk 0:01:35.1]} 15. Ne4 {[%clk
0:01:27.8]} 15... Bxd4 {[%clk 0:01:30.2]} 16. Bxh6 {[%clk 0:01:19.2]} 16... Qe5
{[%clk 0:01:14.9]} 17. Qxe5 {[%clk 0:01:08.2]} 17... Bxe5 {[%clk 0:01:15.1]} 18.
Be3 {[%clk 0:01:05.3]} 18... Rh1+ {[%clk 0:01:06.9]} 19. Bf1 {[%clk 0:01:03.4]}
19... f5 {[%clk 0:00:47.4]} 20. Nc5 {[%clk 0:00:48.4]} 20... Bxb2 {[%clk
0:00:35]} 21. Rd1 {[%clk 0:00:42.9]} 21... Bc3+ {[%clk 0:00:31.7]} 22. Ke2
{[%clk 0:00:40.2]} 22... b6 {[%clk 0:00:31.9]} 23. Nd3 {[%clk 0:00:34.7]} 23...
Ba6 {[%clk 0:00:30.2]} 24. Kf3 {[%clk 0:00:32.8]} 24... O-O-O {[%clk 0:00:27.6]}
25. Bf4 {[%clk 0:00:28.5]} 25... e5 {[%clk 0:00:23.9]} 26. Nxe5 {[%clk
0:00:18.9]} 26... Bxf1 {[%clk 0:00:17]} 27. Rc1 {[%clk 0:00:10.5]} 27... Bxe5
{[%clk 0:00:15]} 28. Re1 {[%clk 0:00:08.1]} 28... Bxg2+ {[%clk 0:00:14.2]} 29.
Kxg2 {[%clk 0:00:08.3]} 29... Rxe1 {[%clk 0:00:14.3]} 30. Bg5 {[%clk 0:00:09.2]}
30... Rg8 {[%clk 0:00:13.5]} 0-1

[Event "Early-Titled-Tuesday-Blitz-January-30-2024"]
[Site "Chess.com"]
[Date "2024.01.30"]
[Round "11"]
[White "Sofia_Blokhin"]
[Black "NtcPou"]
[Result "1-0"]
[WhiteElo "2233"]
[BlackElo "2063"]
[TimeControl "180+1"]
[EndTime "10:11:51 PST"]
[Termination "Sofia_Blokhin won by resignation"]

1. d4 {[%clk 0:03:00.9]} 1... d5 {[%clk 0:02:59.7]} 2. c4 {[%clk 0:03:00.2]}
2... c6 {[%clk 0:02:59.7]} 3. Nc3 {[%clk 0:02:51.7]} 3... Nf6 {[%clk 0:02:59.4]}
4. e3 {[%clk 0:02:51.4]} 4... a6 {[%clk 0:02:58.1]} 5. c5 {[%clk 0:02:47]} 5...
Bf5 {[%clk 0:02:53.8]} 6. Bd3 {[%clk 0:02:45.8]} 6... Bxd3 {[%clk 0:02:50.4]} 7.
Qxd3 {[%clk 0:02:45.8]} 7... Nbd7 {[%clk 0:02:49.5]} 8. f4 {[%clk 0:02:42.5]}
8... e6 {[%clk 0:02:29.6]} 9. Nf3 {[%clk 0:02:41.2]} 9... b6 {[%clk 0:02:28.3]}
10. b4 {[%clk 0:02:40.1]} 10... a5 {[%clk 0:02:27.7]} 11. bxa5 {[%clk
0:02:29.8]} 11... bxc5 {[%clk 0:02:23.9]} 12. O-O {[%clk 0:02:17.1]} 12... Qxa5
{[%clk 0:02:12.5]} 13. Bd2 {[%clk 0:02:14.6]} 13... Qa6 {[%clk 0:02:10.4]} 14.
Qc2 {[%clk 0:02:11.7]} 14... cxd4 {[%clk 0:02:01.5]} 15. Nxd4 {[%clk 0:02:05]}
15... Be7 {[%clk 0:01:47.9]} 16. Kh1 {[%clk 0:01:56.9]} 16... O-O {[%clk
0:01:44.1]} 17. e4 {[%clk 0:01:56.4]} 17... c5 {[%clk 0:01:38.8]} 18. Nf3 {[%clk
0:01:48.8]} 18... d4 {[%clk 0:01:38.3]} 19. Nd1 {[%clk 0:01:40.1]} 19... d3
{[%clk 0:01:35.5]} 20. Qc1 {[%clk 0:01:34]} 20... Nxe4 {[%clk 0:01:35.4]} 21.
Nc3 {[%clk 0:01:27.7]} 21... Nxc3 {[%clk 0:01:31.1]} 22. Bxc3 {[%clk 0:01:26.9]}
22... Bf6 {[%clk 0:01:31.7]} 23. Ne5 {[%clk 0:01:24.6]} 23... Nxe5 {[%clk
0:00:32.3]} 24. fxe5 {[%clk 0:01:24.2]} 24... Be7 {[%clk 0:00:32.7]} 25. Qe3
{[%clk 0:01:21.2]} 25... Qc4 {[%clk 0:00:31.8]} 26. Rac1 {[%clk 0:01:14.3]}
26... Rxa2 {[%clk 0:00:29.9]} 27. Qh3 {[%clk 0:01:08.1]} 27... Qd5 {[%clk
0:00:23]} 28. Rcd1 {[%clk 0:01:03.6]} 28... c4 {[%clk 0:00:21.8]} 29. Rf4 {[%clk
0:00:59.9]} 29... Rc2 {[%clk 0:00:19.9]} 30. Ba1 {[%clk 0:00:48.6]} 30... Ra8
{[%clk 0:00:20]} 31. Qg4 {[%clk 0:00:41.2]} 31... Raa2 {[%clk 0:00:16.9]} 32.
Rg1 {[%clk 0:00:39]} 32... d2 {[%clk 0:00:16.4]} 33. Rd4 {[%clk 0:00:29.9]}
33... Qxe5 {[%clk 0:00:15]} 34. Rd8+ {[%clk 0:00:28.9]} 34... Bxd8 {[%clk
0:00:14]} 35. Bxe5 {[%clk 0:00:29]} 35... f6 {[%clk 0:00:13.6]} 36. Qxe6+ {[%clk
0:00:28.8]} 36... Kf8 {[%clk 0:00:12.7]} 37. Bd6+ {[%clk 0:00:28.8]} 1-0

[Event "Early-Titled-Tuesday-Blitz-January-30-2024"]
[Site "Chess.com"]
[Date "2024.01.30"]
[Round "11"]
[White "GothamChess"]
[Black "Grossboss19"]
[Result "1-0"]
[WhiteElo "2750"]
[BlackElo "2606"]
[TimeControl "180+1"]
[EndTime "10:11:55 PST"]
[Termination "GothamChess won by checkmate"]

1. d4 {[%clk 0:03:00.9]} 1... d5 {[%clk 0:02:58.4]} 2. Bg5 {[%clk 0:03:01.5]}
2... h6 {[%clk 0:02:54.4]} 3. Bh4 {[%clk 0:03:01.9]} 3... Nd7 {[%clk 0:02:54.4]}
4. e3 {[%clk 0:03:01.4]} 4... Ngf6 {[%clk 0:02:54.4]} 5. Nd2 {[%clk 0:03:00.7]}
5... e6 {[%clk 0:02:54.5]} 6. Bd3 {[%clk 0:03:00.5]} 6... Be7 {[%clk 0:02:53.8]}
7. c3 {[%clk 0:03:01.1]} 7... O-O {[%clk 0:02:53.7]} 8. Bxf6 {[%clk 0:03:01.4]}
8... Bxf6 {[%clk 0:02:48.6]} 9. f4 {[%clk 0:03:01.9]} 9... Be7 {[%clk
0:02:39.5]} 10. g4 {[%clk 0:02:57.8]} 10... c5 {[%clk 0:02:24]} 11. Ngf3 {[%clk
0:02:55.3]} 11... f6 {[%clk 0:02:22]} 12. Qe2 {[%clk 0:02:41.9]} 12... e5 {[%clk
0:02:19.5]} 13. dxe5 {[%clk 0:02:29.5]} 13... fxe5 {[%clk 0:02:16.6]} 14. fxe5
{[%clk 0:02:30.1]} 14... Bh4+ {[%clk 0:02:14.2]} 15. Kd1 {[%clk 0:02:30.5]}
15... c4 {[%clk 0:01:48.4]} 16. Bf5 {[%clk 0:02:15.1]} 16... Nc5 {[%clk
0:01:45.8]} 17. Nd4 {[%clk 0:02:15.1]} 17... g6 {[%clk 0:01:33.7]} 18. Rg1
{[%clk 0:01:57.6]} 18... Kh8 {[%clk 0:01:05.2]} 19. e6 {[%clk 0:01:53]} 19...
Qf6 {[%clk 0:00:46.2]} 20. N2f3 {[%clk 0:01:47.2]} 20... Qe7 {[%clk 0:00:21.4]}
21. Ne5 {[%clk 0:01:43.7]} 21... Rg8 {[%clk 0:00:20.8]} 22. Nxg6+ {[%clk
0:00:55.1]} 22... Rxg6 {[%clk 0:00:20.5]} 23. Bxg6 {[%clk 0:00:56]} 23... Bxe6
{[%clk 0:00:21]} 24. b4 {[%clk 0:00:47.9]} 24... Na4 {[%clk 0:00:15.7]} 25. Kd2
{[%clk 0:00:45.7]} 25... Bd7 {[%clk 0:00:14.5]} 26. Bf5 {[%clk 0:00:36.9]} 26...
Be8 {[%clk 0:00:11.3]} 27. Bc2 {[%clk 0:00:35.3]} 27... Bg5 {[%clk 0:00:09.6]}
28. h4 {[%clk 0:00:34.6]} 28... Bf6 {[%clk 0:00:06.1]} 29. g5 {[%clk 0:00:34.6]}
29... Bxd4 {[%clk 0:00:03.9]} 30. exd4 {[%clk 0:00:35.1]} 30... Qxe2+ {[%clk
0:00:03.2]} 31. Kxe2 {[%clk 0:00:36]} 31... Nxc3+ {[%clk 0:00:03.6]} 32. Kd2
{[%clk 0:00:36.8]} 32... Nb5 {[%clk 0:00:04.2]} 33. Rg4 {[%clk 0:00:32.5]} 33...
Bd7 {[%clk 0:00:03.3]} 34. Rf4 {[%clk 0:00:32.8]} 34... Re8 {[%clk 0:00:02.9]}
35. gxh6 {[%clk 0:00:30.3]} 35... Nd6 {[%clk 0:00:02.3]} 36. Raf1 {[%clk
0:00:29.2]} 36... Bb5 {[%clk 0:00:01.9]} 37. Rf8+ {[%clk 0:00:28.9]} 37... Rxf8
{[%clk 0:00:02.3]} 38. Rxf8# {[%clk 0:00:29.5]} 1-0

[Event "Early-Titled-Tuesday-Blitz-January-30-2024"]
[Site "Chess.com"]
[Date "2024.01.30"]
[Round "11"]
[White "Akylbek2021"]
[Black "Talent-OF-Slovenia"]
[Result "1-0"]
[WhiteElo "2309"]
[BlackElo "2460"]
[TimeControl "180+1"]
[EndTime "10:11:55 PST"]
[Termination "Akylbek2021 won by resignation"]

1. d4 {[%clk 0:03:00.9]} 1... d5 {[%clk 0:02:56.9]} 2. c4 {[%clk 0:03:00.1]}
2... c6 {[%clk 0:02:57.1]} 3. Nf3 {[%clk 0:03:00.2]} 3... Nf6 {[%clk 0:02:57.1]}
4. g3 {[%clk 0:03:00.1]} 4... Bf5 {[%clk 0:02:55.7]} 5. Bg2 {[%clk 0:02:59.7]}
5... e6 {[%clk 0:02:55.6]} 6. O-O {[%clk 0:02:59.2]} 6... Be7 {[%clk 0:02:53.7]}
7. b3 {[%clk 0:02:57]} 7... Nbd7 {[%clk 0:02:52.8]} 8. Bb2 {[%clk 0:02:55.3]}
8... O-O {[%clk 0:02:52.1]} 9. Nbd2 {[%clk 0:02:55.9]} 9... a5 {[%clk
0:02:51.2]} 10. Nh4 {[%clk 0:02:56]} 10... Bg6 {[%clk 0:02:49.7]} 11. Nxg6
{[%clk 0:02:56.5]} 11... hxg6 {[%clk 0:02:50.3]} 12. e4 {[%clk 0:02:57]} 12...
dxe4 {[%clk 0:02:50.1]} 13. Nxe4 {[%clk 0:02:57.9]} 13... Nxe4 {[%clk
0:02:50.3]} 14. Bxe4 {[%clk 0:02:58.8]} 14... a4 {[%clk 0:02:50.8]} 15. Re1
{[%clk 0:02:50.6]} 15... Bb4 {[%clk 0:02:38.4]} 16. Re2 {[%clk 0:02:40]} 16...
a3 {[%clk 0:02:32.5]} 17. Bc1 {[%clk 0:02:40.1]} 17... Nf6 {[%clk 0:02:31.9]}
18. Bf3 {[%clk 0:02:39.5]} 18... Bc3 {[%clk 0:02:30.6]} 19. Rb1 {[%clk
0:02:35.4]} 19... Qxd4 {[%clk 0:02:28.2]} 20. Qxd4 {[%clk 0:01:52.5]} 20... Bxd4
{[%clk 0:02:27.7]} 21. b4 {[%clk 0:01:52.4]} 21... Rfd8 {[%clk 0:02:25.5]} 22.
Rb3 {[%clk 0:01:46.7]} 22... Ra4 {[%clk 0:02:15]} 23. Rd2 {[%clk 0:01:34.6]}
23... e5 {[%clk 0:02:11.7]} 24. Bxa3 {[%clk 0:00:42.5]} 24... e4 {[%clk
0:02:07.3]} 25. Be2 {[%clk 0:00:27.4]} 25... e3 {[%clk 0:02:02]} 26. Rdd3 {[%clk
0:00:10.6]} 26... exf2+ {[%clk 0:01:58.3]} 27. Kf1 {[%clk 0:00:11.1]} 27... b6
{[%clk 0:01:30.5]} 28. Bb2 {[%clk 0:00:08.8]} 28... c5 {[%clk 0:01:30.4]} 29.
bxc5 {[%clk 0:00:05.8]} 29... bxc5 {[%clk 0:01:29.8]} 30. Ra3 {[%clk 0:00:05.5]}
30... Rxa3 {[%clk 0:01:25.1]} 31. Bxa3 {[%clk 0:00:04.6]} 31... Ra8 {[%clk
0:01:24.6]} 32. Bd1 {[%clk 0:00:01.8]} 32... Ne4 {[%clk 0:01:22.3]} 33. Bf3
{[%clk 0:00:02.3]} 33... Nc3 {[%clk 0:01:20.2]} 34. Bxa8 {[%clk 0:00:02.1]}
34... Nd1 {[%clk 0:01:15.8]} 35. Bc1 {[%clk 0:00:01.2]} 35... f5 {[%clk
0:01:12.6]} 36. Bf3 {[%clk 0:00:01.6]} 36... Nc3 {[%clk 0:01:11.9]} 37. Rxd4
{[%clk 0:00:01.2]} 37... cxd4 {[%clk 0:01:11.3]} 38. Kxf2 {[%clk 0:00:02.1]}
38... Kf7 {[%clk 0:01:09.8]} 39. c5 {[%clk 0:00:02.4]} 39... Ke7 {[%clk
0:01:08.5]} 40. a3 {[%clk 0:00:02.5]} 40... Kd7 {[%clk 0:01:07.7]} 41. Bf4
{[%clk 0:00:02.8]} 41... Na4 {[%clk 0:00:59.4]} 42. c6+ {[%clk 0:00:03.7]} 42...
Kc8 {[%clk 0:00:59.5]} 43. Be5 {[%clk 0:00:04.2]} 1-0

[Event "Early-Titled-Tuesday-Blitz-January-30-2024"]
[Site "Chess.com"]
[Date "2024.01.30"]
[Round "11"]
[White "MetiForce"]
[Black "Sina_Movahed"]
[Result "0-1"]
[WhiteElo "2860"]
[BlackElo "3044"]
[TimeControl "180+1"]
[EndTime "10:11:57 PST"]
[Termination "Sina_Movahed won by checkmate"]

1. d4 {[%clk 0:03:00.9]} 1... Nf6 {[%clk 0:02:59.9]} 2. c4 {[%clk 0:03:01.7]}
2... g6 {[%clk 0:03:00.5]} 3. Nc3 {[%clk 0:03:02.5]} 3... Bg7 {[%clk 0:03:01.1]}
4. g3 {[%clk 0:03:03.2]} 4... O-O {[%clk 0:03:01.1]} 5. Bg2 {[%clk 0:03:03.8]}
5... d6 {[%clk 0:03:02]} 6. Nf3 {[%clk 0:03:04.4]} 6... Nbd7 {[%clk 0:03:02.2]}
7. O-O {[%clk 0:03:05.1]} 7... e5 {[%clk 0:03:03.1]} 8. e4 {[%clk 0:03:05.6]}
8... exd4 {[%clk 0:03:02.2]} 9. Nxd4 {[%clk 0:03:06.5]} 9... Re8 {[%clk
0:03:03.1]} 10. h3 {[%clk 0:03:06.8]} 10... Nc5 {[%clk 0:03:03.2]} 11. Re1
{[%clk 0:03:07.3]} 11... h6 {[%clk 0:03:03.7]} 12. Rb1 {[%clk 0:03:07.4]} 12...
c6 {[%clk 0:03:02.6]} 13. b3 {[%clk 0:03:07.3]} 13... a5 {[%clk 0:03:03.2]} 14.
Bb2 {[%clk 0:03:05.9]} 14... Nfd7 {[%clk 0:02:58.2]} 15. Bc1 {[%clk 0:03:04.3]}
15... a4 {[%clk 0:02:53.6]} 16. b4 {[%clk 0:02:58.6]} 16... Ne6 {[%clk 0:02:53]}
17. Be3 {[%clk 0:02:58.7]} 17... Ne5 {[%clk 0:02:53.5]} 18. Bf1 {[%clk
0:01:25.5]} 18... Nxd4 {[%clk 0:02:48.7]} 19. Bxd4 {[%clk 0:01:26.4]} 19... Nf3+
{[%clk 0:02:48.9]} 20. Qxf3 {[%clk 0:01:26.3]} 20... Bxd4 {[%clk 0:02:49.3]} 21.
Rbd1 {[%clk 0:01:25.5]} 21... Be5 {[%clk 0:02:48.2]} 22. c5 {[%clk 0:01:21.3]}
22... Qe7 {[%clk 0:02:48.2]} 23. cxd6 {[%clk 0:01:19.1]} 23... Bxd6 {[%clk
0:02:49.1]} 24. a3 {[%clk 0:01:19.9]} 24... Be5 {[%clk 0:02:46.2]} 25. Bc4
{[%clk 0:01:19.1]} 25... Bxh3 {[%clk 0:02:39.5]} 26. Ne2 {[%clk 0:01:12.4]}
26... h5 {[%clk 0:02:35]} 27. Qe3 {[%clk 0:01:12.5]} 27... Kg7 {[%clk
0:02:31.2]} 28. Rd3 {[%clk 0:01:00.1]} 28... Rad8 {[%clk 0:02:26.6]} 29. Red1
{[%clk 0:00:59.9]} 29... Rxd3 {[%clk 0:02:24]} 30. Rxd3 {[%clk 0:01:00.2]} 30...
Be6 {[%clk 0:02:19.3]} 31. Bxe6 {[%clk 0:00:56.6]} 31... Qxe6 {[%clk 0:02:20.2]}
32. Kg2 {[%clk 0:00:57]} 32... Re7 {[%clk 0:02:13.6]} 33. f4 {[%clk 0:00:55.1]}
33... Bc7 {[%clk 0:02:08.7]} 34. Qd4+ {[%clk 0:00:51.1]} 34... Kh7 {[%clk
0:02:08]} 35. Nc3 {[%clk 0:00:51.4]} 35... h4 {[%clk 0:02:01.8]} 36. e5 {[%clk
0:00:49]} 36... Qf5 {[%clk 0:01:44.6]} 37. Ne4 {[%clk 0:00:45]} 37... Bb6 {[%clk
0:01:28.9]} 38. Qc4 {[%clk 0:00:44.8]} 38... Kg7 {[%clk 0:01:25.4]} 39. Nf6
{[%clk 0:00:24.6]} 39... Rxe5 {[%clk 0:00:54.4]} 40. fxe5 {[%clk 0:00:24.5]}
40... h3+ {[%clk 0:00:54.5]} 41. Kh2 {[%clk 0:00:20.3]} 41... Qf1 {[%clk
0:00:55.4]} 42. Qc2 {[%clk 0:00:02.6]} 42... Bg1+ {[%clk 0:00:54.2]} 43. Kh1
{[%clk 0:00:03.1]} 43... Bf2+ {[%clk 0:00:55.1]} 44. Kh2 {[%clk 0:00:03.5]}
44... Qg2# {[%clk 0:00:52.1]} 0-1

[Event "Early-Titled-Tuesday-Blitz-January-30-2024"]
[Site "Chess.com"]
[Date "2024.01.30"]
[Round "11"]
[White "olawsson"]
[Black "ejalmedina"]
[Result "1-0"]
[WhiteElo "2186"]
[BlackElo "2278"]
[TimeControl "180+1"]
[EndTime "10:11:57 PST"]
[Termination "olawsson won on time"]

1. d4 {[%clk 0:02:57.4]} 1... Nf6 {[%clk 0:02:54.2]} 2. c4 {[%clk 0:02:57]} 2...
e6 {[%clk 0:02:53.9]} 3. Nf3 {[%clk 0:02:56.6]} 3... Bb4+ {[%clk 0:02:53.4]} 4.
Nbd2 {[%clk 0:02:56.1]} 4... O-O {[%clk 0:02:49.2]} 5. Qc2 {[%clk 0:02:54.6]}
5... d6 {[%clk 0:02:43.7]} 6. a3 {[%clk 0:02:42.5]} 6... Bxd2+ {[%clk
0:02:42.2]} 7. Nxd2 {[%clk 0:02:42.3]} 7... a5 {[%clk 0:02:31.8]} 8. b3 {[%clk
0:02:39.1]} 8... e5 {[%clk 0:02:27.8]} 9. dxe5 {[%clk 0:02:38.1]} 9... dxe5
{[%clk 0:02:27.1]} 10. g3 {[%clk 0:02:38.4]} 10... Nc6 {[%clk 0:02:11.2]} 11. e3
{[%clk 0:02:35.6]} 11... Qe7 {[%clk 0:02:05.1]} 12. Bg2 {[%clk 0:02:24.1]} 12...
Nd7 {[%clk 0:02:04.3]} 13. O-O {[%clk 0:01:43.3]} 13... Nc5 {[%clk 0:02:03.9]}
14. Bb2 {[%clk 0:01:40.9]} 14... Bg4 {[%clk 0:01:54.9]} 15. Ne4 {[%clk
0:01:25.1]} 15... Bf5 {[%clk 0:01:32.7]} 16. f3 {[%clk 0:01:12.3]} 16... Bxe4
{[%clk 0:01:18.1]} 17. fxe4 {[%clk 0:01:11.8]} 17... Rad8 {[%clk 0:01:17.8]} 18.
Rad1 {[%clk 0:01:08.4]} 18... Qg5 {[%clk 0:00:48.6]} 19. Qc3 {[%clk 0:01:07.2]}
19... Rxd1 {[%clk 0:00:16.3]} 20. Rxd1 {[%clk 0:01:06.1]} 20... Rd8 {[%clk
0:00:15.3]} 21. Rd5 {[%clk 0:00:49.5]} 21... b6 {[%clk 0:00:15.1]} 22. Bc1
{[%clk 0:00:23]} 22... Qe7 {[%clk 0:00:11.7]} 23. b4 {[%clk 0:00:19.1]} 23...
axb4 {[%clk 0:00:10.6]} 24. axb4 {[%clk 0:00:18.7]} 24... Ne6 {[%clk 0:00:09.8]}
25. b5 {[%clk 0:00:18.8]} 25... Na5 {[%clk 0:00:08.4]} 26. Qxe5 {[%clk
0:00:18.4]} 26... Nxc4 {[%clk 0:00:05.6]} 27. Qc3 {[%clk 0:00:13.8]} 27... Nd6
{[%clk 0:00:02.9]} 28. Bb2 {[%clk 0:00:13.3]} 1-0